bitfinex/quotes_BTCUSD_20241201
["timestamp","ask_amount","ask_price","bid_price","bid_amount"]
[1733019508471,5.0019272,96222.0,96221.0,0.023]
[1733019508700,5.0019272,96222.0,96219.0,0.023]
[1733019508910,5.0019272,96222.0,96218.0,0.20786]
[1733019508911,5.0019272,96222.0,96221.0,0.025]
[1733019509571,5.0019272,96222.0,96221.0,0.026]
[1733019509990,5.0019272,96222.0,96221.0,0.025]
[1733019510414,5.0019272,96222.0,96221.0,0.027]
[1733019510623,5.0019272,96222.0,96221.0,0.025]
[1733019511468,5.0521409,96222.0,96221.0,0.027]
[1733019511677,5.02124016,96222.0,96221.0,0.027]
[1733019511908,5.0019272,96222.0,96221.0,0.027]
[1733019512119,5.02123902,96222.0,96221.0,0.027]
[1733019514083,5.0019272,96222.0,96221.0,0.037]
[1733019514315,5.0019272,96222.0,96221.0,0.27032735]
[1733019514520,5.0019272,96222.0,96221.0,0.027]
[1733019514731,5.0019272,96222.0,96221.0,0.033]
[1733019515162,5.0019272,96222.0,96221.0,0.05183929]
[1733019515384,3.5021272,96222.0,96221.0,0.23263072]
[1733019515601,0.0017268,96235.0,96234.0,0.02]
[1733019515813,7.27832808,96222.0,96221.0,0.30854225]
[1733019516026,7.27832808,96222.0,96221.0,0.118]
[1733019516258,7.27832808,96222.0,96221.0,0.115]
[1733019516502,7.27832808,96222.0,96221.0,0.14132806]
[1733019516951,7.27841482,96222.0,96221.0,0.121]
[1733019517163,7.27841482,96222.0,96221.0,0.106]
[1733019517795,7.27841482,96222.0,96221.0,0.115]
[1733019518015,7.27941482,96222.0,96221.0,0.124]
[1733019519530,7.27941482,96222.0,96221.0,0.115]
[1733019519955,7.27941482,96222.0,96221.0,0.124]
[1733019521690,7.27941482,96222.0,96221.0,0.041]
[1733019524372,7.27941482,96222.0,96221.0,0.0418633]
[1733019524628,7.28114142,96222.0,96221.0,0.0418633]
[1733019526516,7.28114142,96222.0,96221.0,0.04370255]
[1733019526729,7.28114142,96222.0,96221.0,0.17150255]
[1733019526946,7.28114142,96222.0,96221.0,0.50770387]
[1733019527204,7.28114142,96222.0,96221.0,0.55241496]
[1733019527440,7.28114142,96222.0,96221.0,0.3196633]
[1733019528616,7.28114142,96222.0,96221.0,0.55223194]
[1733019529615,7.28114142,96222.0,96221.0,0.3196633]
[1733019534334,7.17721642,96222.0,96221.0,0.55217563]
[1733019534612,7.17721642,96222.0,96221.0,0.3196633]
[1733019534850,7.07329142,96222.0,96221.0,0.3196633]
[1733019535242,7.07229142,96222.0,96221.0,0.3106633]
[1733019535458,7.07229142,96222.0,96221.0,0.3016633]
[1733019535695,7.07329142,96222.0,96221.0,0.3196633]
[1733019536765,6.98884156,96222.0,96221.0,0.3196633]
[1733019539463,6.88491656,96222.0,96221.0,0.3196633]
[1733019539689,6.82256156,96222.0,96221.0,0.3196633]
[1733019539906,6.80177656,96222.0,96221.0,0.3196633]
[1733019540141,6.78099156,96222.0,96221.0,0.3196633]
[1733019540594,5.92558451,96222.0,96221.0,0.59831694]
[1733019540814,5.78595199,96222.0,96221.0,0.3196633]
[1733019541292,5.75996341,96222.0,96221.0,0.3196633]
[1733019541502,5.75996341,96222.0,96221.0,0.3106633]
[1733019541708,5.49822341,96222.0,96221.0,0.3016633]
[1733019541938,5.43686841,96222.0,96221.0,0.3176633]
[1733019542148,5.38929841,96222.0,96221.0,0.3176633]
[1733019542414,5.32698141,96222.0,96221.0,0.3016633]
[1733019542627,5.29487695,96222.0,96221.0,0.30563808]
[1733019542812,5.21173695,96222.0,96221.0,0.30963808]
[1733019543066,5.19095195,96222.0,96221.0,0.30963808]
[1733019543296,5.19095195,96222.0,96221.0,0.62141808]
[1733019543508,4.71828195,96222.0,96221.0,0.56581808]
[1733019543748,4.63147118,96222.0,96221.0,0.57181808]
[1733019543983,4.58168618,96222.0,96221.0,0.57181808]
[1733019544196,4.18931778,96222.0,96221.0,0.49961808]
[1733019544415,4.17889442,96222.0,96221.0,0.49961808]
[1733019544631,4.04513095,96222.0,96221.0,0.49961808]
[1733019544820,3.78528238,96222.0,96221.0,0.49961808]
[1733019545036,3.54811438,96222.0,96221.0,0.49961808]
[1733019545486,3.39031889,96222.0,96221.0,0.49961808]
[1733019545607,2.79455477,96222.0,96221.0,0.49961808]
[1733019545827,2.75298477,96222.0,96221.0,0.49961808]
[1733019546038,2.48200881,96222.0,96221.0,0.49961808]
[1733019546241,2.36953423,96222.0,96221.0,0.56412955]
[1733019546657,2.29117923,96222.0,96221.0,0.56412955]
[1733019546886,2.23460923,96222.0,96221.0,0.56412955]
[1733019547137,1.8990899,96222.0,96221.0,0.56412955]
[1733019547371,1.8261199,96222.0,96221.0,0.56412955]
[1733019547611,1.64247046,96222.0,96221.0,0.56412955]
[1733019547844,1.61038484,96222.0,96221.0,0.55812955]
[1733019548064,1.58842213,96222.0,96221.0,0.55412955]
[1733019548300,1.40743835,96222.0,96221.0,0.57212955]
[1733019548516,1.34869604,96222.0,96221.0,0.56312955]
[1733019548945,1.15060631,96222.0,96221.0,0.88543149]
[1733019549156,1.03773398,96222.0,96221.0,0.88542979]
[1733019549285,1.03773398,96222.0,96221.0,0.57212955]
[1733019549707,0.92802191,96222.0,96221.0,0.57212955]
[1733019549917,0.0823,96274.0,96256.0,0.207779]
[1733019550164,5.971e-05,96257.0,96256.0,0.67436487]
[1733019550624,7.1e-07,96257.0,96256.0,0.67436487]
[1733019550859,7.1e-07,96257.0,96256.0,0.7597155]
[1733019551306,0.0782,96295.0,96281.0,0.357725]
[1733019551512,0.0017869,96282.0,96281.0,0.67321935]
[1733019551718,0.0017869,96282.0,96281.0,0.69621935]
[1733019552439,0.0017869,96282.0,96281.0,0.70731597]
[1733019552652,0.0497869,96282.0,96281.0,0.54621935]
[1733019552877,0.0497869,96282.0,96281.0,0.52321935]
[1733019553089,0.0497869,96282.0,96281.0,0.71763133]
[1733019553322,0.0497869,96282.0,96281.0,0.53221935]
[1733019553965,0.0497869,96282.0,96281.0,0.54121935]
[1733019554394,0.0497869,96282.0,96281.0,0.52321935]
[1733019554605,0.0497869,96282.0,96281.0,0.53221935]
[1733019554811,0.0497869,96282.0,96281.0,0.54121935]
[1733019555221,0.0017869,96282.0,96281.0,0.54221645]
[1733019555842,0.0017869,96282.0,96281.0,0.71521645]
[1733019556047,0.0017869,96282.0,96281.0,0.70621645]
[1733019556892,0.0017869,96282.0,96281.0,0.7160144]
[1733019557572,0.0017869,96282.0,96281.0,0.7070144]
[1733019557745,0.0017869,96282.0,96281.0,0.6980144]
[1733019558026,0.0017869,96282.0,96281.0,0.7160144]
[1733019559592,9e-07,96282.0,96281.0,0.99416853]
[1733019559810,9e-07,96282.0,96281.0,0.7160144]
[1733019560567,9e-07,96282.0,96281.0,0.78052587]
[1733019560825,9e-07,96282.0,96281.0,0.77152587]
[1733019561056,9e-07,96282.0,96281.0,1.08476503]
[1733019561340,9e-07,96282.0,96281.0,1.08398502]
[1733019561553,9e-07,96282.0,96281.0,0.77152587]
[1733019561981,9e-07,96282.0,96281.0,0.78052587]
[1733019562410,9e-07,96282.0,96281.0,0.77152587]
[1733019563030,9e-07,96282.0,96281.0,0.76252587]
[1733019563255,9e-07,96282.0,96281.0,0.77152587]
[1733019563475,9e-07,96282.0,96281.0,0.76252587]
[1733019563686,9e-07,96282.0,96281.0,1.46252587]
[1733019563890,9e-07,96282.0,96281.0,1.47652587]
[1733019564382,9e-07,96282.0,96281.0,1.7826603]
[1733019564593,9e-07,96282.0,96281.0,1.7876603]
[1733019565032,9e-07,96282.0,96281.0,1.7826603]
[1733019565479,9e-07,96282.0,96281.0,1.7876603]
[1733019566374,9e-07,96282.0,96281.0,1.47552587]
[1733019566793,9e-07,96282.0,96281.0,1.3880144]
[1733019567005,9e-07,96282.0,96281.0,0.6880144]
[1733019569156,9e-07,96282.0,96281.0,0.72067986]
[1733019569373,9e-07,96282.0,96281.0,0.74367986]
[1733019569781,9e-07,96282.0,96281.0,0.72067986]
[1733019569993,9e-07,96282.0,96281.0,1.0646362]
[1733019570474,9e-07,96282.0,96281.0,0.74452587]
[1733019570677,9e-07,96282.0,96281.0,0.73952587]
[1733019570883,9e-07,96282.0,96281.0,1.02875138]
[1733019571097,9e-07,96282.0,96281.0,0.77652587]
[1733019571577,0.0017268,96303.0,96302.0,0.35768]
[1733019571790,0.0017268,96303.0,96302.0,0.6701945]
[1733019572006,0.0017268,96303.0,96302.0,0.73856672]
[1733019572912,0.1241272,96316.0,96302.0,0.73856672]
[1733019572913,8e-07,96315.0,96309.0,0.207664]
[1733019573178,8e-07,96315.0,96310.0,0.4633272]
[1733019573398,8e-07,96315.0,96314.0,0.15]
[1733019573612,0.075,96326.0,96318.0,0.207645]
[1733019573824,0.075,96326.0,96318.0,0.67095212]
[1733019574033,0.075,96326.0,96318.0,0.67295976]
[1733019574255,0.075,96326.0,96318.0,1.08248619]
[1733019574470,0.00232362,96319.0,96318.0,1.08248619]
[1733019575333,0.00232362,96319.0,96318.0,0.69095976]
[1733019575556,0.00232362,96319.0,96318.0,0.68195976]
[1733019575813,0.12472362,96319.0,96318.0,0.52295976]
[1733019576251,0.12472362,96319.0,96318.0,0.3161124]
[1733019576511,0.12472362,96319.0,96318.0,0.1880124]
[1733019576963,0.12472362,96319.0,96318.0,0.1980063]
[1733019578292,0.12472362,96319.0,96318.0,0.2070063]
[1733019581911,0.12472362,96319.0,96318.0,0.20884378]
[1733019582116,0.12472362,96319.0,96318.0,0.44029516]
[1733019582326,0.12472362,96319.0,96318.0,0.2070063]
[1733019582549,0.12472362,96319.0,96318.0,0.20884369]
[1733019583232,0.12472362,96319.0,96318.0,0.19984369]
[1733019583634,0.07732362,96319.0,96318.0,0.19984369]
[1733019584066,0.07732362,96319.0,96318.0,0.19084369]
[1733019584286,0.07732362,96319.0,96318.0,0.20884369]
[1733019584691,0.07732362,96319.0,96318.0,0.19084369]
[1733019584895,0.07732362,96319.0,96318.0,0.19984369]
[1733019585111,0.07732362,96319.0,96318.0,0.20884369]
[1733019585316,0.07732362,96319.0,96318.0,0.19984369]
[1733019586548,0.07732362,96319.0,96318.0,0.4871473]
[1733019586757,0.07732362,96319.0,96318.0,0.48530991]
[1733019586972,0.07732362,96319.0,96318.0,0.48530681]
[1733019587205,0.07732362,96319.0,96318.0,0.2070063]
[1733019587403,0.07732362,96319.0,96318.0,0.20884364]
[1733019590490,0.07732362,96319.0,96318.0,0.48757905]
[1733019590681,0.07732362,96319.0,96318.0,0.2070063]
[1733019590879,0.07732362,96319.0,96318.0,0.20884371]
[1733019591311,0.07732362,96319.0,96318.0,0.48757912]
[1733019591533,0.07732362,96319.0,96318.0,0.2070063]
[1733019591743,0.07732362,96319.0,96318.0,0.20884372]
[1733019592757,0.07732362,96319.0,96318.0,0.48780743]
[1733019592967,0.03058401,96319.0,96318.0,0.48597001]
[1733019593169,0.03058401,96319.0,96318.0,0.2070063]
[1733019593373,0.03058401,96319.0,96318.0,0.20884367]
[1733019594573,0.03058401,96319.0,96318.0,0.48805992]
[1733019594871,0.03058401,96319.0,96318.0,0.48622255]
[1733019595086,0.07888401,96319.0,96318.0,0.2070063]
[1733019595283,0.07888401,96319.0,96318.0,0.2087311]
[1733019595528,0.07974641,96319.0,96318.0,0.1997311]
[1733019595775,0.07974641,96319.0,96318.0,0.2087311]
[1733019596444,0.07974641,96319.0,96318.0,0.1997311]
[1733019596683,0.07974641,96319.0,96318.0,0.1907311]
[1733019596856,0.07974641,96319.0,96318.0,0.1997311]
[1733019597071,0.07974641,96319.0,96318.0,0.2087311]
[1733019597408,0.07974641,96319.0,96318.0,0.1997311]
[1733019597608,0.07974641,96319.0,96318.0,0.43261916]
[1733019598625,0.07974641,96319.0,96318.0,0.1997311]
[1733019599046,0.10274641,96319.0,96318.0,0.1997311]
[1733019599475,0.10274641,96319.0,96318.0,0.20488634]
[1733019599691,0.10274641,96319.0,96318.0,0.19969511]
[1733019600038,0.10274641,96319.0,96318.0,0.3860539]
[1733019600446,0.10274641,96319.0,96318.0,0.3950539]
[1733019600557,0.10274641,96319.0,96318.0,0.3860539]
[1733019600976,0.10274641,96319.0,96318.0,0.3950539]
[1733019602086,0.10274641,96319.0,96318.0,0.20869511]
[1733019602309,0.10274641,96319.0,96318.0,0.19969511]
[1733019602739,0.10274641,96319.0,96318.0,0.19669511]
[1733019602952,0.10274641,96319.0,96318.0,0.20569511]
[1733019603185,0.10274641,96319.0,96318.0,0.19069511]
[1733019603590,0.10274641,96319.0,96318.0,0.20569511]
[1733019605126,0.10274641,96319.0,96318.0,0.34555692]
[1733019605354,0.10274641,96319.0,96318.0,0.20569511]
[1733019606234,0.10274641,96319.0,96318.0,0.34555692]
[1733019606439,0.07974641,96319.0,96318.0,0.20569511]
[1733019606645,0.07974641,96319.0,96318.0,0.44042065]
[1733019606871,0.07974641,96319.0,96318.0,0.20569511]
[1733019607127,0.07974641,96319.0,96318.0,0.20753258]
[1733019607327,0.07974641,96319.0,96318.0,0.20569511]
[1733019607698,0.10274641,96319.0,96318.0,0.20569511]
[1733019608057,0.07974641,96319.0,96318.0,0.20569511]
[1733019609195,0.07974641,96319.0,96318.0,0.39214527]
[1733019609391,0.07974641,96319.0,96318.0,0.20569511]
[1733019609802,0.11458523,96319.0,96318.0,0.20569511]
[1733019609943,0.26458523,96319.0,96318.0,0.20569511]
[1733019610147,0.26274641,96319.0,96318.0,0.20569511]
[1733019611365,0.27373297,96319.0,96318.0,0.20569511]
[1733019616213,0.28369297,96319.0,96318.0,0.20569511]
[1733019616454,0.28369297,96319.0,96318.0,0.02759511]
[1733019616652,0.28369297,96319.0,96318.0,0.02279244]
[1733019617065,0.28369297,96319.0,96318.0,0.01752244]
[1733019618066,0.28369297,96319.0,96318.0,0.01152244]
[1733019618488,0.28369297,96319.0,96302.0,0.001725]
[1733019618696,0.488077,96303.0,96302.0,0.001725]
[1733019619455,0.511077,96303.0,96302.0,0.001725]
[1733019619875,0.511077,96303.0,96302.0,0.010725]
[1733019620699,0.52220909,96303.0,96302.0,0.010725]
[1733019621678,0.54216909,96303.0,96302.0,0.010725]
[1733019621906,0.54216909,96303.0,96302.0,0.017725]
[1733019622650,0.54216909,96303.0,96302.0,0.001725]
[1733019623057,0.54216909,96303.0,96302.0,0.013725]
[1733019623255,0.53220909,96303.0,96302.0,0.013725]
[1733019623466,0.54216909,96303.0,96302.0,0.009725]
[1733019624451,0.31453209,96303.0,96302.0,0.009725]
[1733019624660,0.01113209,96303.0,96302.0,0.009725]
[1733019624899,0.01183882,96310.0,96302.0,0.01342743]
[1733019625100,0.023,96303.0,96302.0,0.01342743]
[1733019625515,0.01095029,96310.0,96302.0,0.01842743]
[1733019625732,0.01095029,96310.0,96303.0,0.207676]
[1733019625972,0.0008624,96319.0,96303.0,0.0018378]
[1733019626174,0.0008624,96319.0,96304.0,0.00370086]
[1733019626381,0.0008624,96319.0,96314.0,0.207652]
[1733019626555,0.0008624,96319.0,96311.0,0.207659]
[1733019626760,0.0008624,96319.0,96318.0,0.0009856]
[1733019627158,0.0008624,96319.0,96318.0,0.00467562]
[1733019628195,0.0008624,96319.0,96318.0,0.0053647]
[1733019628536,0.00270122,96319.0,96318.0,0.0053647]
[1733019628779,0.02570122,96319.0,96318.0,0.0053647]
[1733019628982,0.0238624,96319.0,96318.0,0.0053647]
[1733019629183,0.3014624,96319.0,96318.0,0.0073647]
[1733019629386,0.3214224,96319.0,96318.0,0.0123647]
[1733019630046,0.3214224,96319.0,96318.0,0.0073647]
[1733019630467,0.01996,96316.0,96315.0,0.18641856]
[1733019630676,0.32239882,96316.0,96315.0,0.18641856]
[1733019630884,0.32056,96316.0,96315.0,0.18641856]
[1733019631761,0.03296,96304.0,96285.0,0.39413356]
[1733019631965,0.00183882,96303.0,96286.0,0.00183808]
[1733019632170,0.35951582,96303.0,96286.0,0.18825664]
[1733019632399,0.380677,96303.0,96286.0,0.18825664]
[1733019633428,0.380677,96303.0,96302.0,0.014725]
[1733019634386,0.023,96303.0,96302.0,0.014725]
[1733019635561,0.033,96303.0,96302.0,0.014725]
[1733019635798,0.03483882,96303.0,96302.0,0.014725]
[1733019636846,0.32239882,96303.0,96302.0,0.014725]
[1733019637043,0.32056,96303.0,96302.0,0.014725]
[1733019637685,0.32056,96303.0,96302.0,0.010725]
[1733019638081,0.00996,96295.0,96294.0,0.00051545]
[1733019638279,0.00996,96295.0,96255.0,0.207781]
[1733019638280,0.01,96276.0,96255.0,0.207781]
[1733019638480,0.01,96276.0,96258.0,0.00671199]
[1733019638481,0.00183882,96275.0,96258.0,0.00671199]
[1733019638748,0.023,96273.0,96269.0,0.0009933]
[1733019638872,0.230743,96273.0,96269.0,0.0009933]
[1733019639701,0.230743,96273.0,96269.0,0.00159032]
[1733019640332,0.023,96275.0,96269.0,0.00159032]
[1733019640908,0.023,96273.0,96269.0,0.00159032]
[1733019641177,0.023,96271.0,96269.0,0.00159032]
[1733019641378,0.230749,96270.0,96269.0,0.00159032]
[1733019641591,0.023,96270.0,96269.0,0.00959032]
[1733019641796,0.023,96271.0,96269.0,0.00959032]
[1733019641998,0.230749,96270.0,96269.0,0.01859032]
[1733019642213,0.023,96270.0,96269.0,0.01045352]
[1733019642629,0.023,96270.0,96269.0,0.01635703]
[1733019642630,0.024,96270.0,96269.0,0.01635703]
[1733019642834,0.001,96270.0,96269.0,0.01945352]
[1733019643251,0.001,96270.0,96269.0,0.02435053]
[1733019643467,0.001,96270.0,96269.0,0.01945352]
[1733019644323,0.001,96270.0,96269.0,0.01145352]
[1733019644540,0.001,96270.0,96269.0,0.01945352]
[1733019645653,0.001,96270.0,96269.0,0.01984519]
[1733019645867,0.001,96270.0,96269.0,0.02477664]
[1733019646074,0.001,96270.0,96269.0,0.01984519]
[1733019650542,0.001,96270.0,96269.0,0.02475443]
[1733019651569,0.001,96270.0,96269.0,0.01984519]
[1733019652638,0.001,96270.0,96269.0,0.02477664]
[1733019654537,0.001,96270.0,96269.0,0.01984519]
[1733019656343,0.001,96270.0,96269.0,0.02477664]
[1733019660775,0.01283882,96270.0,96269.0,0.02477664]
[1733019661984,0.12749882,96270.0,96269.0,0.01084519]
[1733019662202,0.27566,96268.0,96267.0,0.04219136]
[1733019662417,0.32396,96268.0,96267.0,0.01512825]
[1733019662637,0.377734,96258.0,96238.0,0.18650243]
[1733019662850,0.01,96242.0,96235.0,0.18650243]
[1733019663068,0.20964982,96241.0,96239.0,0.00494765]
[1733019663287,0.41746282,96241.0,96231.0,0.18650243]
[1733019663491,0.207822,96237.0,96231.0,0.18650243]
[1733019663699,0.207822,96237.0,96232.0,0.00496363]
[1733019664132,0.207822,96237.0,96226.0,0.44089548]
[1733019664133,0.207822,96237.0,96230.0,0.18644198]
[1733019664357,0.207822,96237.0,96233.0,0.00496283]
[1733019664562,0.21880591,96237.0,96231.0,0.005]
[1733019664769,0.21880591,96237.0,96234.0,0.00496204]
[1733019665013,0.21880591,96237.0,96231.0,0.005]
[1733019665455,0.21880591,96237.0,96235.0,0.01392453]
[1733019665456,0.01098391,96237.0,96231.0,0.005]
[1733019665690,0.001,96237.0,96232.0,0.00530676]
[1733019665924,0.207822,96236.0,96232.0,0.00530676]
[1733019666398,0.01,96233.0,96232.0,0.00034313]
[1733019666678,0.01183882,96233.0,96232.0,0.00034313]
[1733019667689,0.00183882,96233.0,96232.0,0.00034313]
[1733019667964,0.00996,96238.0,96232.0,0.00034313]
[1733019667965,0.15,96238.0,96232.0,0.00034313]
[1733019668207,0.01,96242.0,96233.0,0.207828]
[1733019668430,0.001,96236.0,96235.0,0.207824]
[1733019668655,0.207788,96252.0,96240.0,0.207812]
[1733019668869,0.00183882,96254.0,96241.0,0.0003431]
[1733019669079,0.00183882,96254.0,96242.0,0.207809]
[1733019669293,0.01,96252.0,96243.0,0.00183907]
[1733019669509,0.01,96244.0,96243.0,0.00495487]
[1733019669739,0.01,96242.0,96241.0,0.0003431]
[1733019669969,0.02179882,96242.0,96241.0,0.0003431]
[1733019670200,0.02179882,96242.0,96241.0,0.0033431]
[1733019671150,0.05362738,96242.0,96241.0,0.0033431]
[1733019671588,0.04248127,96242.0,96241.0,0.0003431]
[1733019672018,0.02179882,96242.0,96241.0,0.0003431]
[1733019672447,0.02179882,96242.0,96241.0,0.0013431]
[1733019679197,0.15,96242.0,96241.0,0.001]
[1733019679412,0.15183882,96242.0,96241.0,0.001]
[1733019680028,0.15,96242.0,96241.0,0.001]
[1733019680239,0.15,96242.0,96241.0,0.0013431]
[1733019680447,0.16179882,96242.0,96241.0,0.0013431]
[1733019680865,0.15183882,96242.0,96241.0,0.0013431]
[1733019681491,0.01128809,96243.0,96241.0,0.0013431]
[1733019681944,0.01,96249.0,96241.0,0.0013431]
[1733019682177,0.01,96249.0,96242.0,0.0003431]
[1733019682867,0.01,96249.0,96243.0,0.21278853]
[1733019683106,0.01,96249.0,96244.0,0.00034309]
[1733019683751,0.01,96249.0,96245.0,0.21278393]
[1733019683961,0.01086518,96252.0,96246.0,0.2078]
[1733019684166,0.0017276,96257.0,96246.0,0.2090417]
[1733019684387,0.0017276,96257.0,96253.0,0.207784]
[1733019684823,0.01279025,96257.0,96255.0,0.207781]
[1733019685240,0.0017276,96257.0,96256.0,0.00497318]
[1733019685662,0.0017276,96257.0,96256.0,5.971e-05]
[1733019685884,0.0017276,96257.0,96256.0,0.00503289]
[1733019686158,0.0017276,96257.0,96256.0,5.971e-05]
[1733019686394,0.0017276,96257.0,96256.0,0.00502419]
[1733019686638,0.0017276,96257.0,96256.0,5.971e-05]
[1733019686639,0.0979876,96257.0,96256.0,5.971e-05]
[1733019686873,0.0979876,96257.0,96256.0,0.00600999]
[1733019687107,0.27282642,96257.0,96256.0,5.971e-05]
[1733019687337,0.2709876,96257.0,96256.0,0.00205971]
[1733019687569,0.29197313,96257.0,96256.0,0.00205971]
[1733019688768,0.29197313,96257.0,96256.0,5.971e-05]
[1733019689005,0.29297313,96257.0,96256.0,5.971e-05]
[1733019690751,0.50075013,96257.0,96256.0,5.971e-05]
[1733019698787,0.40145013,96257.0,96256.0,5.971e-05]
[1733019699013,0.3804646,96257.0,96256.0,5.971e-05]
[1733019699220,0.0027276,96257.0,96256.0,5.971e-05]
[1733019700277,0.0027276,96257.0,96256.0,0.00503081]
[1733019700483,0.0027276,96257.0,96256.0,5.971e-05]
[1733019700729,0.0017276,96257.0,96256.0,0.00503081]
[1733019700972,0.0017276,96257.0,96256.0,0.00405971]
[1733019701221,0.0017276,96257.0,96256.0,0.00503081]
[1733019701502,0.0017276,96257.0,96256.0,5.971e-05]
[1733019701711,0.0017276,96257.0,96256.0,0.01003081]
[1733019701882,0.0027276,96257.0,96256.0,0.00505971]
[1733019702712,0.0027276,96257.0,96256.0,0.01003081]
[1733019702970,0.0017276,96257.0,96256.0,0.01003081]
[1733019703199,0.0017276,96257.0,96256.0,0.01037386]
[1733019703433,0.0017276,96257.0,96256.0,0.01237386]
[1733019703836,0.0017276,96257.0,96256.0,0.00737386]
[1733019704079,0.0017276,96257.0,96256.0,0.00240276]
[1733019704287,0.0017276,96257.0,96256.0,0.00840276]
[1733019704494,0.0017276,96257.0,96256.0,0.00240276]
[1733019704701,0.0017276,96257.0,96256.0,0.00440276]
[1733019704904,0.0017276,96257.0,96256.0,0.00640276]
[1733019705562,0.0017276,96257.0,96256.0,0.00440276]
[1733019705771,0.0017276,96257.0,96256.0,0.00540276]
[1733019706849,0.0117276,96257.0,96256.0,0.00540276]
[1733019707057,0.01356642,96257.0,96256.0,0.00540276]
[1733019707681,0.01356642,96257.0,96256.0,0.00440276]
[1733019708898,0.01356642,96257.0,96256.0,0.00040276]
[1733019709423,0.01356642,96257.0,96256.0,0.00140276]
[1733019709642,0.02352642,96257.0,96256.0,0.00140276]
[1733019711745,0.01352642,96257.0,96256.0,0.00140276]
[1733019712156,0.0216876,96257.0,96256.0,0.00040276]
[1733019712363,0.0126876,96257.0,96256.0,0.00040276]
[1733019712597,0.0136876,96257.0,96256.0,0.00040276]
[1733019712813,0.0027276,96257.0,96256.0,0.00040276]
[1733019713045,0.0037276,96257.0,96256.0,0.0022415]
[1733019713256,0.0027276,96257.0,96256.0,0.00720747]
[1733019713468,0.0027276,96257.0,96256.0,0.00224139]
[1733019713669,0.0037276,96257.0,96256.0,0.00720174]
[1733019713892,0.0027276,96257.0,96256.0,0.00224139]
[1733019714100,0.0027276,96257.0,96256.0,0.00720141]
[1733019714101,0.0017276,96257.0,96256.0,0.00720141]
[1733019714305,0.0027276,96257.0,96256.0,0.00396899]
[1733019714510,0.0027276,96257.0,96256.0,0.00892901]
[1733019714714,0.0017276,96257.0,96256.0,0.00892901]
[1733019715146,0.0017276,96257.0,96256.0,0.01092901]
[1733019715356,0.0017276,96257.0,96256.0,0.01592901]
[1733019715583,0.0017276,96257.0,96256.0,0.01092901]
[1733019716013,0.0017276,96257.0,96256.0,0.01692901]
[1733019720348,0.0017276,96257.0,96256.0,0.24987315]
[1733019720569,0.0017276,96257.0,96256.0,0.24803452]
[1733019721025,0.0017276,96257.0,96256.0,0.42222335]
[1733019721465,0.0017276,96257.0,96256.0,0.14269038]
[1733019721672,0.0017276,96257.0,96256.0,0.01509038]
[1733019721886,0.2095046,96257.0,96256.0,0.00709038]
[1733019722094,0.2095046,96257.0,96256.0,0.01609038]
[1733019722305,0.2205428,96257.0,96256.0,0.01609038]
[1733019722517,0.2205428,96257.0,96256.0,0.00213036]
[1733019722725,0.2205428,96257.0,96256.0,0.00813036]
[1733019722936,0.0127658,96257.0,96256.0,0.00813036]
[1733019723141,0.2205428,96257.0,96256.0,0.00213036]
[1733019723352,0.2095046,96257.0,96256.0,0.01313036]
[1733019723740,0.2095046,96257.0,96256.0,0.00813036]
[1733019724178,0.2095046,96257.0,96256.0,0.01013036]
[1733019726962,0.0017276,96257.0,96256.0,0.00813036]
[1733019727183,0.0017276,96257.0,96256.0,0.00778731]
[1733019727400,0.0017276,96257.0,96256.0,0.36911395]
[1733019727611,0.0017276,96257.0,96256.0,0.13614027]
[1733019727844,0.0017276,96257.0,96256.0,0.13727739]
[1733019728056,0.0017276,96257.0,96256.0,0.41736669]
[1733019728285,0.0017276,96257.0,96256.0,0.41361515]
[1733019728489,0.0017276,96257.0,96256.0,0.13414027]
[1733019728914,0.0017276,96257.0,96256.0,0.13914027]
[1733019729162,0.0017276,96257.0,96256.0,0.12814027]
[1733019729372,0.0017276,96257.0,96256.0,0.41654765]
[1733019729607,0.0017276,96257.0,96256.0,0.13714027]
[1733019729816,0.0017276,96257.0,96256.0,0.13914027]
[1733019730241,0.0017276,96257.0,96256.0,0.13714027]
[1733019730661,0.0017276,96257.0,96256.0,0.14214027]
[1733019730862,0.0017276,96257.0,96256.0,0.14248332]
[1733019731095,0.0017276,96257.0,96256.0,0.14326627]
[1733019731513,0.0017276,96257.0,96256.0,0.42358831]
[1733019731690,0.0017276,96257.0,96256.0,0.42174999]
[1733019732398,0.0017276,96257.0,96256.0,0.14248332]
[1733019732811,0.0017276,96257.0,96256.0,0.14332042]
[1733019735537,0.0017276,96257.0,96256.0,0.14432165]
[1733019743113,0.0017276,96257.0,96256.0,0.02108332]
[1733019743324,0.0017276,96257.0,96256.0,0.02292176]
[1733019744432,0.0017276,96257.0,96256.0,0.30224503]
[1733019744634,0.0017276,96257.0,96256.0,0.30040659]
[1733019745258,0.0017276,96257.0,96256.0,0.02108332]
[1733019745463,0.0017276,96257.0,96256.0,0.30232286]
[1733019745674,0.0017276,96257.0,96256.0,0.02108332]
[1733019745885,0.0017276,96257.0,96256.0,0.02292177]
[1733019746104,0.0017276,96257.0,96256.0,0.30232365]
[1733019746308,0.0017276,96257.0,96256.0,0.02108332]
[1733019746517,0.0017276,96257.0,96256.0,0.30231614]
[1733019746737,0.0017276,96257.0,96256.0,0.02108332]
[1733019746972,0.0017276,96257.0,96256.0,0.15202177]
[1733019747192,0.0017276,96257.0,96256.0,0.30202177]
[1733019747409,0.0017276,96257.0,96256.0,0.30018332]
[1733019747680,0.0017276,96257.0,96256.0,0.32318332]
[1733019748097,6e-07,96257.0,96256.0,0.32318332]
[1733019748345,6e-07,96257.0,96256.0,0.31418332]
[1733019748587,6e-07,96257.0,96256.0,0.628422]
[1733019748803,6e-07,96257.0,96256.0,0.32318332]
[1733019749021,6e-07,96257.0,96256.0,0.30918332]
[1733019749245,6e-07,96257.0,96256.0,0.64129651]
[1733019749457,6e-07,96257.0,96256.0,0.32718332]
[1733019749657,6e-07,96257.0,96256.0,0.62985332]
[1733019749878,6e-07,96257.0,96256.0,0.94396651]
[1733019750095,0.00496,96303.0,96293.0,0.207699]
[1733019750312,0.00496,96303.0,96293.0,0.39655425]
[1733019750518,0.00496,96303.0,96293.0,0.52513868]
[1733019751139,0.0800268,96294.0,96293.0,0.31743968]
[1733019751343,0.08020585,96294.0,96293.0,0.31743968]
[1733019751776,0.08020585,96294.0,96293.0,0.3175365]
[1733019751988,0.08020585,96294.0,96293.0,0.32243968]
[1733019752199,0.00190585,96294.0,96293.0,0.32243968]
[1733019752411,0.00190585,96294.0,96293.0,0.32443968]
[1733019758017,0.14756585,96294.0,96293.0,0.32443968]
[1733019758207,0.14940467,96294.0,96293.0,0.32443968]
[1733019758437,0.14940467,96294.0,96293.0,0.3195365]
[1733019758612,0.14756585,96294.0,96293.0,0.3195365]